Cogmind - Beta 12 @@@ ROGUE MODE // 2023.03.22 @ 19:59:38 Player: Dizzar Result: Destroyed by G-34 Mercenary with Small Laser Performance ------------- Evolutions (1) 500 Regions Visited (3) 600 Robots Destroyed (13) 65 Value Destroyed (296) 296 Prototype IDs (0) 0 Alien Tech Used (0) 0 Bonus (0) 0 TOTAL SCORE: 1461 Bonus ------- None Cogmind --------- Core Integrity 0/400 Matter 300/300 Energy 125/125 System Corruption 0% Temperature Cool (12) Movement Rolling (100) Location -9/Mines Parts ------- > --- POWER (1) -------- Light Ion Engine > --- PROPULSION (2) --- Compact Wheel > --- UTILITY (3) ------ Small Storage Unit > --- WEAPON (3) ------- Mace Mace Mace > --- INVENTORY (8) ---- Light Treads Light Treads EM Pulse Gun Peak State ------------ > --- POWER ------------ Light Ion Engine > --- PROPULSION ------- Wheel Compact Wheel > --- UTILITY ---------- Small Storage Unit Shield Generator > --- WEAPON ----------- Mace Mace Mace > --- INVENTORY -------- Light Treads Light Treads EM Pulse Gun Mace [Rating: 12] Favorites ----------- Power Ion Engine Engine Ion Engine Propulsion Aluminum Leg Leg Aluminum Leg Wheel Wheel Utility Small Storage Unit Device Shield Generator Storage Small Storage Unit Weapon Mace Energy Gun Small Laser Impact Weapon Mace Build | -11 -10 -9 -9 ------- Run | Jun Mat Mat Min Slots Evolved 2 | . . 2 . Power . | . . . . Propulsion . | . . . . Utility 1 | . . 1 . Weapon 1 | . . 1 . Parts Attached 12 | . 2 3 7 Power 2 | . . . 2 Engine 2 | . . . 2 Core . | . . . . Reactor . | . . . . Propulsion 4 | . . 2 2 Treads . | . . . . Leg . | . . . . Wheel 4 | . . 2 2 Hover . | . . . . Flight . | . . . . Utility 2 | . . . 2 Device 2 | . . . 2 Storage . | . . . . Processor . | . . . . Hackware . | . . . . Protection . | . . . . Artifact . | . . . . Weapon 4 | . 2 1 1 Energy Gun . | . . . . Energy Cannon . | . . . . Ballistic Gun . | . . . . Ballistic Cannon . | . . . . Launcher . | . . . . Special Weapon . | . . . . Impact Weapon 4 | . 2 1 1 Slashing Weapon . | . . . . Piercing Weapon . | . . . . Special Melee Weapon . | . . . . Unidentified Prototypes . | . . . . Parts Lost 10 | . . 2 8 Power 2 | . . . 2 Propulsion 5 | . . 2 3 Utility 2 | . . . 2 Weapon 1 | . . . 1 Highest Loss Streak 4 | . . 2 4 To Critical Strikes . | . . . . Average Slot Usage (%) 76 | . 85 74 70 Engine 11 | . 14 11 9 Leg 15 | . 28 16 . Wheel 4 | . . 3 11 Device 1 | . . . 5 Storage 11 | . 14 11 11 Impact Weapon 31 | . 26 33 33 Naked Turns . | . . . . Heaviest Build 17 | 13 14 16 17 Greatest Support 26 | 20 20 26 26 Greatest Overweight (x) 4 | . . . 4 Average Overweight (x) . | . . . . Largest Inventory Capacity 8 | . 8 8 8 Average Capacity 8 | . 8 8 8 Most Carried 8 | . 8 7 6 Average Carried 6 | . 7 6 4 Final Capacity 8 | 8 8 8 8 Final Carried 8 | 6 8 6 3 Class Distribution -------------------- 100% | Mutant Dominant Class ---------------- Mutant | -10/Materials Mutant | -9/Materials Mutant | -9/Mines Resources | -11 -10 -9 -9 ----------- Run | Jun Mat Mat Min Matter Collected 310 | 200 20 30 60 Remotely 20 | . . . 20 Salvage Created 311 | . 100 115 96 Parts 4 | . . . 4 Haulers Intercepted 1 | . . 1 . Recyclers Shooed . | . . . . Parts Field Recycled . | . . . . Retrieved Matter . | . . . . Parts Self-Destructed . | . . . . Prevented . | . . . . Kills | -11 -10 -9 -9 ------- Run | Jun Mat Mat Min Combat Hostiles Destroyed 11 | . 2 2 7 Melee 7 | . 1 . 6 Classes Destroyed 5 | . 2 2 1 Hauler 1 | . . 1 . Watcher 1 | . 1 . . Swarmer 6 | . . . 6 Grunt 3 | . 2 . 1 Sentry 2 | . . 2 . Best Kill Streak 4 | . 2 1 4 Combat Bots Only 4 | . 2 1 4 Max Kills in Single Turn 1 | . 1 1 1 Gunslinging . | . . . . Exploded . | . . . . Melee 1 | . 1 . 1 Uniques/NPCs Destroyed . | . . . . Combat | -11 -10 -9 -9 -------- Run | Jun Mat Mat Min Damage Taken 1451 | . 132 490 829 Core 479 | . 73 143 263 Absorbed by Shields 79 | . . . 79 Core Remaining (%) 85 | 100 70 . . Volleys Fired . | . . . . Largest . | . . . . Hottest . | . . . . Shots Fired . | . . . . Gun . | . . . . Cannon . | . . . . Launcher . | . . . . Special . | . . . . Kinetic . | . . . . Thermal . | . . . . Explosive . | . . . . Electromagnetic . | . . . . Robot Hit Streak . | . . . . Robot Miss Streak . | . . . . Penetration Max . | . . . . Secondary Targets . | . . . . Shots Hit Robots 52 | . 6 27 19 Core Hits 4 | . 1 . 3 Critical Kills . | . . . . Critical Parts Destroyed 7 | . 2 5 . Critical Strikes 7 | . 2 5 . Smash 7 | . 2 5 . Melee Attacks 74 | . 8 28 38 Impact 74 | . 8 28 38 Slashing . | . . . . Piercing . | . . . . Sneak Attacks 3 | . . 3 . Combat Hostiles . | . . . . Follow-up Attacks 15 | . . 5 10 Damage Inflicted 1572 | . 210 747 615 Guns . | . . . . Cannons . | . . . . Explosions . | . . . . Melee 1572 | . 210 747 615 Ramming . | . . . . Kinetic . | . . . . Thermal . | . . . . Explosive . | . . . . Electromagnetic . | . . . . Impact 1572 | . 210 747 615 Slashing . | . . . . Piercing . | . . . . Highest Corruption . | . . . . Average Corruption . | . . . . Corruption Purged . | . . . . Corruption Blocked . | . . . . Overload Shots . | . . . . Overflow Damage 351 | . 77 144 130 Projectiles . | . . . . Explosions . | . . . . Melee 351 | . 77 144 130 Knockbacks 6 | . 2 1 3 Impact 6 | . 2 1 3 Kinetic . | . . . . Secondary . | . . . . Self-Inflicted Damage . | . . . . Shots . | . . . . Rammed . | . . . . Targets Rammed . | . . . . Kicked . | . . . . Crushed . | . . . . Highest Temperature 6 | . . 6 . Average Temperature 6 | . . 6 . Received Heat Transfer 437 | . 72 186 179 Siege Activations . | . . . . Robots Corrupted . | . . . . Combat Hostiles . | . . . . Parts Fried 9 | . 4 3 2 Impact Corruptions 23 | . 5 9 9 Robots Melted . | . . . . Combat Hostiles . | . . . . Parts Melted . | . . . . Heat Transferred . | . . . . Parts Sabotaged . | . . . . Parts Stolen . | . . . . Parts Stripped . | . . . . Power Chain Reactions . | . . . . Missiles Intercepted . | . . . . Alert | -11 -10 -9 -9 ------- Run | Jun Mat Mat Min Peak Influence 155 | . 72 106 155 Initial 40 | . . 29 40 Average 65 | . 32 67 103 Maximum Alert Level . | . . . . Low Security (%) 100 | . 100 100 100 Level 1 . | . . . . Level 2 . | . . . . Level 3 . | . . . . Level 4 . | . . . . Level 5 . | . . . . High Security . | . . . . Max Security . | . . . . Squads Dispatched . | . . . . Investigation . | . . . . Extermination . | . . . . Reinforcement . | . . . . Assault . | . . . . Garrison . | . . . . Intercept . | . . . . Searches Triggered . | . . . . Construction Impeded . | . . . . Haulers Reinforced . | . . . . Active Scanning Responses . | . . . . Cargo Convoy Interrupts . | . . . . Stealth | -11 -10 -9 -9 --------- Run | Jun Mat Mat Min Distress Signals . | . . . . Communications Jammed . | . . . . Distress Signals . | . . . . Times Spotted 17 | . 4 3 10 Peak Tracking Total 4 | . 4 1 4 Tactical Retreats . | . . . . Traps | -11 -10 -9 -9 ------- Run | Jun Mat Mat Min Traps Triggered . | . . . . Indirectly . | . . . . Trap Hack Attempts . | . . . . Triggered . | . . . . Disarmed . | . . . . Reprogrammed . | . . . . Reused . | . . . . Traps Extracted . | . . . . Installed . | . . . . Triggered . | . . . . Machines | -11 -10 -9 -9 ---------- Run | Jun Mat Mat Min Machines Disabled . | . . . . Max in Single Turn . | . . . . Machines Repaired . | . . . . Machines Sabotaged . | . . . . Overloaded Fab Kills . | . . . . Hacking | -11 -10 -9 -9 --------- Run | Jun Mat Mat Min Machines Accessed . | . . . . Terminals . | . . . . Fabricators . | . . . . Repair Stations . | . . . . Recycling Units . | . . . . Scanalyzers . | . . . . Garrison Access . | . . . . Total Hacks . | . . . . Successful . | . . . . Failed . | . . . . Catastrophic . | . . . . Database Lockouts . | . . . . Manual . | . . . . Terminals . | . . . . Fabricators . | . . . . Repair Stations . | . . . . Recycling Units . | . . . . Scanalyzers . | . . . . Garrison Access . | . . . . Terminal Hacks . | . . . . Fabricator Hacks . | . . . . Repair Station Hacks . | . . . . Recycling Unit Hacks . | . . . . Scanalyzer . | . . . . Garrison Access Hacks . | . . . . Unauthorized Hacks . | . . . . Terminals . | . . . . Fabricators . | . . . . Repair Stations . | . . . . Recycling Units . | . . . . Scanalyzers . | . . . . Garrison Access . | . . . . Data Cores Recovered . | . . . . Used . | . . . . Hacking Detections . | . . . . Full Trace Events . | . . . . Feedback Events . | . . . . Feedback Blocked . | . . . . Robot Schematics Acquired . | . . . . Robots Built . | . . . . Authchips . | . . . . Time . | . . . . Total Robot Build Rating . | . . . . Part Schematics Acquired . | . . . . Parts Built . | . . . . Authchips . | . . . . Time . | . . . . Total Part Build Rating . | . . . . Parts Repaired . | . . . . Time . | . . . . Parts Recycled . | . . . . Recycled Matter . | . . . . Retrieved Matter . | . . . . Retrieved Components . | . . . . Parts Scanalyzed . | . . . . Part Schematics Acquired . | . . . . Parts Damaged . | . . . . Bothacking | -11 -10 -9 -9 ------------ Run | Jun Mat Mat Min Used RIF Installer . | . . . . Robots Hacked . | . . . . Non-combat . | . . . . Combat . | . . . . Robot Hacks Applied . | . . . . Relay Couplers Released . | . . . . Fabnet Peak Effective % . | . . . . Robots Rewired . | . . . . Allies Hacked . | . . . . Hacks Repelled . | . . . . Allies | -11 -10 -9 -9 -------- Run | Jun Mat Mat Min Total Allies . | . . . . Largest Group . | . . . . Highest-Rated Group . | . . . . Highest-Rated Ally . | . . . . Total Orders . | . . . . Ally Attacks . | . . . . Total Damage . | . . . . Kills . | . . . . Allies Corrupted . | . . . . Allies Melted . | . . . . Intel | -11 -10 -9 -9 ------- Run | Jun Mat Mat Min Robot Analysis Total . | . . . . Derelict Logs Recovered . | . . . . Drone Launches . | . . . . Drone Recoveries . | . . . . Exploration | -11 -10 -9 -9 ------------- Run | Jun Mat Mat Min Turns Passed 599 | . 182 273 144 Spaces Moved 351 | 1 122 169 59 Core 1 | . . . 1 Treads . | . . . . Legs 252 | 1 122 129 . Wheels 98 | . . 40 58 Hover . | . . . . Flight . | . . . . Fastest Speed 90 | 120 120 90 90 Average Speed 112 | 120 120 112 97 Slowest Speed 250 | 120 120 120 250 Overloaded Moves . | . . . . Propulsion Burnouts . | . . . . Robots Hopped . | . . . . Cave-ins Triggered . | . . . . Exploration Rate (%) 16 | 1 26 20 20 Regions Visited 3 Branch Regions 1 Pre-discovered Areas . | . . . . Known Exits Taken . | . . . . Unknown Exits Taken 3 | 1 1 1 . Scrap Searched 1 | . . . 1 Spaces Dug . | . . . . Terrain Destroyed . | . . . . Melee . | . . . . Projectile . | . . . . AOE . | . . . . Terrain Rammed . | . . . . Walls Destroyed . | . . . . Machines Disabled . | . . . . Actions | -11 -10 -9 -9 --------- Run | Jun Mat Mat Min Total 444 | . 143 208 93 Wait 21 | . 8 13 . Move 348 | . 121 168 59 Hop . | . . . . Pick Up 3 | . 2 1 . Fast Attach 6 | . 2 . 4 Attach 6 | . . 3 3 Detach . | . . . . Swap . | . . . . Drop 2 | . 2 . . Fire . | . . . . Melee 58 | . 8 23 27 Ram . | . . . . Kick . | . . . . Crush . | . . . . Escape Stasis . | . . . . Rewire . | . . . . Trap . | . . . . Miscellaneous . | . . . . Route ------- -11/Junkyard -10/Materials -9/Materials -9/Mines History --------- Turn | Location | Event 1 | -11/Junkyard | Discovered new exit (range 0) 1 | -11/Junkyard | Entered Materials 143 | -10/Materials | Discovered new exit (range 9) 183 | -10/Materials | Entered another Materials area 183 | -9/Materials | Evolved 2 slots: Utility x1, Weapon x1 318 | -9/Materials | Build established: Mutant 350 | -9/Materials | Discovered new exit (range 14) 456 | -9/Materials | Entered Mines 465 | -9/Mines | Core integrity fell below 50% 520 | -9/Mines | Lost 3 parts (1p2n) 576 | -9/Mines | Core integrity fell below 20% 600 | -9/Mines | Destroyed by G-34 Mercenary with Small Laser Last Messages --------------- 00573_ Acquired 5 matter. 00573_ Wheel destroyed. 00575_ Acquired Tractor Beam. 00576_ Acquired 10 matter. 00577_ K-01 Serf collects debris. 00581_ Shield Generator destroyed. 00581_ Mace destroyed. 00581_ K-01 Serf collects debris. 00584_ Acquired 10 matter. 00584_ K-01 Serf collects debris. 00585_ Mace follow-up attack on G-47 Trooper. 00586_ Tractor Beam destroyed. 00587_ K-01 Serf collects debris. 00588_ Mace follow-up attack on G-47 Trooper. 00588_ Destroyed Lgt. Nuclear Core. 00588_ Destroyed Imp. Heat Sink. 00588_ G-47 Trooper system corrupted by crushing effect. 00589_ G-47 Trooper system terminally corrupted. 00589_ Aluminum Leg fried. 00590_ K-01 Serf collects debris. Map ----- +----------------------------------------------------+ | ?????????????????????????????????????????????????? | | ?????????????????????????????????????????????????? | | ?????????????????????????????????????????????????? | | ?????????????????????????????????????????????????? | | ????????????????????????????? ??????????????????? | | ????????????????????????????? ??????????????????? | | ????????????????????????????? ??????????????????? | | ????????????????????????????# #?????????????????? | | ????????????????????????????# #?????????????????? | | ????????????????????????????# #?????????????????? | | ????????????????????????????# #?????????????????? | | ????????????????????????????# #?????????????????? | | ????????????????????????????# #?????????????????? | | ???????????? ???????????????# #?????????????????? | | ??????????? ??????????????# #?????????????????? | | ???????????# ??????????????# #?????????????????? | | ???????????# ??????????????# #?????????????????? | | ?????????### ###?????????### #?????????????????? | | ????????## # ##??????## #?????????????????? | | ????????# ##?????# #?????????????????? | | ????????# ##????# #?????????????????? | | ???????## ##??## ##????????????????? | | ?????### ##?# #####????????????? | | ????## #?#% ##???????????? | | ????# ###% ####????????? | | ????? @] #????????? | | ?????????# ggr% ### #????????? | | ??????????# ##### ##????????????? | | ?????????## #???# % ## ##?????????????? | | ?????????# %##??##k ##? #??????????????? | | ???# ## #???#%##?? #??????????????? | | ???## #?## =#####"##?? #??????????????? | | ????## #???###=[% "%"#?? #??????????????? | | ?????## #??????# %###### #?? #??????????????? | | ??????#######???????# #????? #?? #??????????????? | | ??????????????????? #????? ?? ??????????????? | | ?????????????????? #????? ?? ??????????????? | | ?????????????????#######????? ? ??????????????? | | ?????????????????????????????# ? ??????????????? | | ?????????????????????????????? # ??????????????? | | ?????????????????????????????? ###??????????????? | | ?????????????????????????????? #????????????????? | | ??????????????????????????????###????????????????? | | ?????????????????????????????????????????????????? | | ?????????????????????????????????????????????????? | | ?????????????????????????????????????????????????? | | ?????????????????????????????????????????????????? | | ?????????????????????????????????????????????????? | | ?????????????????????????????????????????????????? | | ?????????????????????????????????????????????????? | +----------------------------------------------------+ Best States ------------- Heat Dissipation 28 Energy Generation 10 Energy Capacity 250 Matter Stores 300 Matter Capacity 300 Sight Range 16 Terrain Scan Density 10 Evasion (%) 55 Item Schematics ----------------- None Robot Schematics ------------------ None Fabricated ------------ Nothing Alien Tech Used ----------------- None Achievements -------------- None Challenges ------------ None Game ------ Seed FieldSpliceClaws Manual? 0 Play Time 00:06:38 Cumulative 48.9 hours Start 2023.03.22 @ 19:54:31 End 2023.03.22 @ 19:59:38 Sessions 1 Manual Loads 0 Difficulty Rogue Special Mode None Game No. 63 Rogue 63 Adventurer 0 Explorer 0 Win Type - Total 4 Types 4/0/0/0/0/0/0/0/0 Lore% 36 Gallery% 46 Achievement% 39 Wizard Run 0 Options --------- ASCII 0 Keyboard 0 Movement Numpad Keybinds 0 Fullscreen 1 Font 18/SmallcapsGlow Map View 76x50 Tactical HUD 1 Map Filters NONE Filters NONE Steam 1 RUN: cea1ddd0-ef04-43de-b21e-9d85cabc10b2